Cogmind - Beta 14 @@@ ROGUE MODE // 2024.11.01 @ 12:29:56 Player: Xellophane Result: Self-destructed Performance ------------- Evolutions (1) 500 Regions Visited (2) 400 Robots Destroyed (44) 220 Value Destroyed (1116) 1116 Prototype IDs (4) 80 Alien Tech Used (0) 0 Bonus (22) 22 TOTAL SCORE: 2338 Bonus ------- High Alert Combat Kills 22 Cogmind --------- Core Integrity 106/400 Matter 97/300 Energy 100/100 System Corruption 0% Temperature Cool (9) Movement Core (1350) Ox26 Location -9/Materials Parts ------- > --- POWER (1) -------- (None) > --- PROPULSION (3) --- (None) > --- UTILITY (3) ------ Huge Storage Unit > --- WEAPON (2) ------- Small Laser > --- INVENTORY (25) --- Aluminum Leg Aluminum Leg Signal Interpreter EM Pulse Gun Grenade Launcher Rocket Launcher Mining Laser Peak State ------------ > --- POWER ------------ Light Ion Engine > --- PROPULSION ------- Light Treads Light Treads Light Treads > --- UTILITY ---------- Huge Storage Unit Seismic Detector ECM Suite > --- WEAPON ----------- Small Laser Assault Rifle > --- INVENTORY -------- Light Ion Engine Light Treads Aluminum Leg Aluminum Leg EM Pulse Gun Heavy Assault Rifle Grenade Launcher Rocket Launcher Mining Laser [Rating: 10] Favorites ----------- Power Light Ion Engine Engine Light Ion Engine Power Core Light Nuclear Core Propulsion Light Treads Treads Light Treads Utility Seismic Detector Device Seismic Detector Storage Huge Storage Unit Weapon Small Laser Energy Gun Small Laser Ballistic Gun Assault Rifle Launcher Grenade Launcher Build | -11 -10 -9 ------- Run | Yrd Mat Mat Slots Evolved 2 | . . 2 Power . | . . . Propulsion 1 | . . 1 Utility 1 | . . 1 Weapon . | . . . Parts Attached 34 | 7 10 17 Power 5 | 1 1 3 Engine 4 | 1 1 2 Core 1 | . . 1 Reactor . | . . . Propulsion 13 | 2 5 6 Treads 13 | 2 5 6 Leg . | . . . Wheel . | . . . Hover . | . . . Flight . | . . . Utility 4 | 2 1 1 Device 2 | 1 . 1 Storage 2 | 1 1 . Processor . | . . . Hackware . | . . . Protection . | . . . Artifact . | . . . Weapon 12 | 2 3 7 Energy Gun 5 | 2 1 2 Energy Cannon . | . . . Ballistic Gun 3 | . 1 2 Ballistic Cannon . | . . . Launcher 4 | . 1 3 Special Weapon . | . . . Impact Weapon . | . . . Slashing Weapon . | . . . Piercing Weapon . | . . . Special Melee Weapon . | . . . Unidentified Prototypes . | . . . Parts Lost 9 | . 1 8 Power 3 | . . 3 Propulsion 3 | . . 3 Utility 1 | . . 1 Weapon 2 | . 1 1 Highest Loss Streak 3 | . 1 3 To Critical Strikes . | . . . Average Slot Usage (%) 96 | . 99 92 Engine 12 | . 14 10 Treads 27 | . 27 28 Device 17 | . 14 21 Storage 12 | . 14 11 Energy Gun 16 | . 21 10 Ballistic Gun 5 | . 5 6 Launcher 2 | . . 4 Peak Build Rating 10 | 7 8 10 Average Rating 7 | 5 7 9 On Entrance 4 | . 7 7 Naked Turns . | . . . Heaviest Build 90 | 13 87 90 Greatest Support 60 | 40 40 60 Greatest Overweight (x) 28 | 2 2 28 Average Overweight (x) 1 | . 1 1 Largest Inventory Capacity 25 | 8 25 25 Average Capacity 22 | 6 22 25 Most Carried 11 | 6 11 9 Average Carried 8 | 2 8 8 Final Capacity 25 | 8 25 25 Final Carried 8 | 6 8 7 Class Distribution -------------------- 92% | Mutant 7% | Scavenger-Mutant Dominant Class ---------------- Mutant | -10/Materials Mutant | -9/Materials Resources | -11 -10 -9 ----------- Run | Yrd Mat Mat Matter Collected 649 | 201 83 365 Remotely . | . . . Salvage Created 1314 | 231 517 566 Parts 89 | 20 32 37 Haulers Intercepted 1 | . 1 . Recyclers Shooed 1 | 1 . . Parts Field Recycled . | . . . Retrieved Matter . | . . . Parts Self-Destructed . | . . . Prevented . | . . . Kills | -11 -10 -9 ------- Run | Yrd Mat Mat Combat Hostiles Destroyed 26 | . 12 14 Guns 15 | . 8 7 AOE 10 | . 3 7 Classes Destroyed 11 | 3 5 3 Worker 4 | 2 . 2 Builder 2 | . 2 . Tunneler 6 | 5 . 1 Hauler 1 | . 1 . Recycler 2 | 1 . 1 Mechanic 1 | . . 1 Watcher 2 | . 1 1 Swarmer 3 | . 3 . Grunt 17 | . 9 8 Brawler 1 | . . 1 Sentry 5 | . . 5 Best Kill Streak 7 | 7 4 7 Combat Bots Only 4 | . 4 3 Max Kills in Single Turn 6 | 1 3 6 Gunslinging . | . . . Exploded 3 | . 3 2 Melee . | . . . Uniques/NPCs Destroyed . | . . . Combat | -11 -10 -9 -------- Run | Yrd Mat Mat Hostile Shots Fired 185 | . 64 121 Missed 61 | . 27 34 Damage Taken 1661 | . 475 1186 Core 366 | . 72 294 Absorbed by Shields . | . . . Regen/Repaired (Parts) 324 | . 144 180 Core Remaining (%) 85 | 100 71 . Volleys Fired 103 | 16 41 46 Largest 2 | 2 2 2 Hottest 80 | 80 80 70 Shots Fired 180 | 32 62 86 Gun 155 | 32 61 62 Cannon . | . . . Launcher 25 | . 1 24 Special . | . . . Kinetic 34 | . 12 22 Thermal 62 | . 22 40 Explosive 25 | . 1 24 Electromagnetic 59 | 32 27 . Robot Hit Streak 12 | 5 8 12 Robot Miss Streak 3 | 2 3 3 Penetration Max . | . . . Secondary Targets 2 | . 2 . Max Gunslinging Chain 1 | . 1 . Shots Hit Robots 122 | 19 41 62 Core Hits 70 | 9 26 35 Critical Kills 1 | . 1 . Critical Parts Destroyed . | . . . Critical Strikes 1 | . 1 . Destroy 1 | . 1 . Melee Attacks . | . . . Impact . | . . . Slashing . | . . . Piercing . | . . . Sneak Attacks . | . . . Combat Hostiles . | . . . Follow-up Attacks . | . . . Damage Inflicted 2998 | 306 798 1894 Guns 1287 | 252 536 499 Cannons . | . . . Explosions 1711 | 54 262 1395 Melee . | . . . Ramming . | . . . Kinetic 329 | . 144 185 Thermal 1211 | 54 304 853 Explosive 989 | . 133 856 Electromagnetic 469 | 252 217 . Impact . | . . . Slashing . | . . . Piercing . | . . . Highest Corruption . | . . . Average Corruption . | . . . Corruption Purged . | . . . Corruption Blocked . | . . . Overload Shots . | . . . Overflow Damage 99 | . . 99 Projectiles . | . . . Explosions 99 | . . 99 Melee . | . . . Knockbacks . | . . . Impact . | . . . Kinetic . | . . . Secondary . | . . . Self-Inflicted Damage 27 | . . 27 Shots 3 | . . 3 Rammed . | . . . Targets Rammed . | . . . Kicked . | . . . Crushed . | . . . Highest Temperature 102 | 72 102 36 Average Temperature 29 | 23 41 12 Received Heat Transfer 744 | . 255 489 Siege Activations . | . . . Robots Corrupted 1 | . 1 . Combat Hostiles 1 | . 1 . Parts Fried 1 | 1 . . Impact Corruptions . | . . . Robots Melted . | . . . Combat Hostiles . | . . . Parts Melted . | . . . Heat Transferred 1725 | 100 550 1075 Parts Sabotaged . | . . . Parts Stolen . | . . . Parts Stripped . | . . . Power Chain Reactions 3 | 2 1 . Alert | -11 -10 -9 ------- Run | Yrd Mat Mat Peak Influence 477 | 40 273 477 Initial 26 | . 26 24 Average 147 | 17 110 220 Maximum Alert Level 2 | . 1 2 Low Security (%) 71 | 100 77 58 Level 1 20 | . 22 22 Level 2 7 | . . 19 Level 3 . | . . . Level 4 . | . . . Level 5 . | . . . High Security . | . . . Max Security . | . . . Squads Dispatched 3 | . 1 2 Investigation 1 | . 1 . Extermination . | . . . Reinforcement 2 | . . 2 Assault . | . . . Garrison . | . . . Intercept . | . . . Searches Triggered . | . . . Construction Impeded . | . . . Haulers Reinforced . | . . . Active Scanning Responses . | . . . Cargo Convoy Interrupts . | . . . Stealth | -11 -10 -9 --------- Run | Yrd Mat Mat Distress Signals 6 | . . 6 Communications Jammed . | . . . Distress Signals . | . . . Times Spotted 48 | . 15 33 Peak Tracking Total 5 | . 5 5 Tactical Retreats 4 | . . 4 Traps | -11 -10 -9 ------- Run | Yrd Mat Mat Traps Triggered 6 | . 3 3 Indirectly . | . . . Trap Hack Attempts . | . . . Triggered . | . . . Disarmed . | . . . Reprogrammed . | . . . Reused . | . . . Traps Extracted . | . . . Installed . | . . . Triggered . | . . . Machines | -11 -10 -9 ---------- Run | Yrd Mat Mat Machines Disabled 8 | . 1 7 Max in Single Turn 4 | . 1 4 Machines Repaired . | . . . Machines Dismantled . | . . . Machines Sabotaged . | . . . Overloaded Fab Kills . | . . . Hacking | -11 -10 -9 --------- Run | Yrd Mat Mat Machines Accessed 9 | . 6 3 Terminals 7 | . 5 2 Fabricators . | . . . Repair Stations 2 | . 1 1 Recycling Units . | . . . Scanalyzers . | . . . Garrison Access . | . . . Total Hacks 34 | . 23 11 Successful 17 | . 11 6 Failed 17 | . 12 5 Catastrophic 3 | . 2 1 Database Lockouts . | . . . Manual 17 | . 13 4 Terminals 23 | . 16 7 Fabricators . | . . . Repair Stations 11 | . 7 4 Recycling Units . | . . . Scanalyzers . | . . . Garrison Access . | . . . Terminal Hacks 7 | . 5 2 Prototype ID Bank 3 | . 2 1 Level Access Points 1 | . 1 . Branch Access Points 2 | . 1 1 Terminal Index 1 | . 1 . Fabricator Hacks . | . . . Repair Station Hacks 10 | . 6 4 Scan Component 5 | . 3 2 Repair 5 | . 3 2 Recycling Unit Hacks . | . . . Scanalyzer . | . . . Garrison Access Hacks . | . . . Unauthorized Hacks . | . . . Terminals . | . . . Fabricators . | . . . Repair Stations . | . . . Recycling Units . | . . . Scanalyzers . | . . . Garrison Access . | . . . Data Cores Recovered . | . . . Used . | . . . Hacking Detections 9 | . 6 3 Full Trace Events 3 | . 3 . Feedback Events . | . . . Feedback Blocked . | . . . Robot Schematics Acquired . | . . . Robots Built . | . . . Authchips . | . . . Time . | . . . Total Robot Build Rating . | . . . Part Schematics Acquired . | . . . Parts Built . | . . . Authchips . | . . . Time . | . . . Total Part Build Rating . | . . . Parts Repaired 5 | . 3 2 Time 130 | . 78 52 Parts Recycled . | . . . Recycled Matter . | . . . Retrieved Matter . | . . . Retrieved Components . | . . . Parts Scanalyzed . | . . . Part Schematics Acquired . | . . . Parts Damaged . | . . . Bothacking | -11 -10 -9 ------------ Run | Yrd Mat Mat Used RIF Installer . | . . . Robots Hacked . | . . . Non-combat . | . . . Combat . | . . . Robot Hacks Applied . | . . . Relay Couplers Released . | . . . Fabnet Peak Effective % . | . . . Robots Rewired . | . . . Allies Hacked . | . . . Hacks Repelled . | . . . Allies | -11 -10 -9 -------- Run | Yrd Mat Mat Total Allies . | . . . Largest Group . | . . . Highest-Rated Group . | . . . Highest-Rated Ally . | . . . Total Orders . | . . . Ally Attacks . | . . . Total Damage . | . . . Kills . | . . . Allies Corrupted . | . . . Allies Melted . | . . . Intel | -11 -10 -9 ------- Run | Yrd Mat Mat Robot Analysis Total . | . . . Derelict Logs Recovered . | . . . Drone Launches . | . . . Drone Recoveries . | . . . Exploration | -11 -10 -9 ------------- Run | Yrd Mat Mat Turns Passed 2070 | 124 1135 811 Spaces Moved 582 | 42 324 216 Core 9 | 8 . 1 Treads 573 | 34 324 215 Legs . | . . . Wheels . | . . . Hover . | . . . Flight . | . . . Fastest Speed 50 | 50 160 240 Average Speed 268 | 143 286 264 Slowest Speed 1450 | 160 320 1450 Overloaded Moves . | . . . Propulsion Burnouts . | . . . Robots Hopped . | . . . Cave-ins Triggered . | . . . Exploration Rate (%) 37 | 4 74 35 Regions Visited 2 Branch Regions . Pre-discovered Areas . | . . . Known Exits Taken 1 | . 1 . Unknown Exits Taken 1 | 1 . . Scrap Searched . | . . . Spaces Dug 8 | . . 8 Terrain Destroyed 153 | 7 19 127 Melee . | . . . Projectile . | . . . AOE 153 | 7 19 127 Terrain Rammed . | . . . Walls Destroyed . | . . . Machines Disabled . | . . . Actions | -11 -10 -9 --------- Run | Yrd Mat Mat Total 903 | 70 468 365 Wait 166 | . 85 81 Move 580 | 41 323 216 Hop . | . . . Pick Up 17 | 6 6 5 Fast Attach 17 | 7 4 6 Attach 9 | . 3 6 Detach 1 | . 1 . Swap 8 | . 3 5 Drop 2 | . 2 . Fire 103 | 16 41 46 Melee . | . . . Ram . | . . . Kick . | . . . Crush . | . . . Escape Stasis . | . . . Rewire . | . . . Trap . | . . . Miscellaneous . | . . . Route ------- -11/Scrapyard -10/Materials (discovered 4 exits: *Mat x3 / Min) -9/Materials (discovered 2 exits: *Min / Sto) History --------- Turn | Location | Event 20 | -11/Scrapyard | Discovered new exit (range 16) 125 | -11/Scrapyard | Entered Materials 261 | -10/Materials | Discovered new exit (range 16) 311 | -10/Materials | Build established: Mutant 431 | -10/Materials | Discovered new exit (range 8) 506 | -10/Materials | Repaired Grenade Launcher 533 | -10/Materials | Repaired Lgt. Treads 561 | -10/Materials | Repaired Lgt. Treads 774 | -10/Materials | Discovered new exit (range 5) 803 | -10/Materials | Identified exit to Mines 1051 | -10/Materials | Identified exit to Materials 1260 | -10/Materials | Entered another Materials area 1260 | -9/Materials | Evolved 2 slots: Propulsion x1, Utility x1 1428 | -9/Materials | Repaired Lgt. Treads 1456 | -9/Materials | Repaired Lgt. Treads 1605 | -9/Materials | Identified exit to Mines 1605 | -9/Materials | Identified exit to Storage 2057 | -9/Materials | Core integrity fell below 50% 2071 | -9/Materials | Self-destructed Last Messages --------------- 02036_ Triggered Blade Trap. 02036_ Massive razor-sharp blades shoot up from within the floor. 02036_ Hvy. Assault Rifle severed. 02036_ Lgt. Treads severed. 02039_ K-01 Serf collects debris. 02039_ Acquired Lgt. Ion Engine. 02042_ K-01 Serf collects debris. 02044_ Lgt. Ion Engine destroyed. 02045_ K-01 Serf collects debris. 02047_ Triggered Blade Trap. 02047_ Massive razor-sharp blades shoot up from within the floor. 02047_ Lgt. Treads severed. 02047_ Sml. Laser severed. 02047_ Seismic Detector severed. 02049_ K-01 Serf collects debris. 02059_ ECM Suite destroyed. 02063_ K-01 Serf cleans the Machine. 02068_ K-01 Serf collects debris. 02070_ Acquired Sml. Laser. 02071_ Lgt. Nuclear Core destroyed. Map ----- +----------------------------------------------------+ | ??????????????????# " ??? """ #?? "???# [ | | ??????????????????# ? ?? """"" #?? ?"???# * | | ??????????????????# ? ?????""" #?? ?????# | | ??????????????????# ? ???????" #?? ?????# """ | | ??????????????????? ? ???????? +??""?????# """ | | ??????????????????????????????? ??????????# """ | | ????????????????????????????????????????????# | | ????????????????????????????????????????????###### | | ?????????????????????????????????????????????????? | | ?????????????????????????????????????????????????? | | ?????????????????????????????????????????????????? | | ?????????????????????????????????????????????????? | | ?????????????????????????????????????????????????? | | ?????????????????????????????????????????????????? | | ?????????????????????????????????????????????????? | | ?????????????????????????????????????????????????? | | ?????????????????????????????????????????????????? | | ?????????????????????????????????????????????????? | | ?????????????????????????????????????????????????? | | ?????????????????????????????????????????????????? | | ?????????????????????????????????????????????????? | | ????????????????????????????????????????#######??? | | ????????????????????????????????????????#""""""??? | | ???????????????######???????????????????#" !"! "?? | | ???????????????# ##+#########+####+##" "## | | ???????????????# [ ^=@ Y k | | ???????????????# =%[ k= > | | ???????????????# m Y [ | | ???????????????# ##+########## # ## | | ???????????????## ?# !#???????? #######?# | | ?????????????? ??# #???????????# ## | | ???????????? ???#""" #???????????#! "T" ## | | ??????????? ????#""" #???????????# ##! | | ????????????###??????#""" ######??????# / ## | | ?????????????????????# + #??????# # | | ?????????????????????######## #??????# | | ?????????????????????????#### ###########+#### | | ?????????????????? + | | ????????????????? ## #################### #### | | ???????????????????????????????????????????# | | ???????????????????????????????????????????# ## | | ???????????????????????????????????????????# ##### | | ???????????????????????????????????????????# #???? | | ???????????????????????>???????????????????# #???? | | ???????????????????????????????????????????# #???? | | ???????????????????????????????????????????# #???? | | ???????????????????????????????????????????# #???? | | ???????????????????????????????????????????# #???? | | ???????????????????????????????????????????? ????? | | ???????????????????????????????????????????? ????? | +----------------------------------------------------+ Best States ------------- Heat Dissipation 28 Energy Generation 14 Energy Capacity 160 Matter Stores 231 Matter Capacity 300 Sight Range 16 Terrain Scan Density 10 ECM Strength 1 Evasion (%) 40 Recoil Reduction 3 Item Schematics ----------------- None Robot Schematics ------------------ None Fabricated ------------ Nothing Alien Tech Used ----------------- None Achievements -------------- None Challenges ------------ None Game ------ Seed CentriumLongswordScythe Manual? 0 Play Time 00:24:20 Cumulative 11.4 hours Start 2024.11.01 @ 12:05:35 End 2024.11.01 @ 12:29:56 Sessions 1 Manual Loads 0 Difficulty Rogue Special Mode None Game No. 19 Rogue 19 Adventurer 0 Explorer 0 Win Type - Total 0 Types 0/0/0/0/0/0/0/0/0 Lore% 4 Gallery% 8 Achievement% 13 Wizard Run 0 Options --------- Layout 0 ASCII 0 Keyboard 1 Movement Numpad Keybinds 0 Fullscreen 2 Font 18/SmallcapsGlow Map View 76x50 Zoom Use 0% Tactical HUD 1 Map Filters NONE Filters NONE Steam 1 RUN: 821422a6-295d-4d0c-a71d-dea76e72dcf2